bitfinex/quotes_SOLUSD_20240712
["timestamp","ask_amount","ask_price","bid_price","bid_amount"]
[1720760434333,20.0,136.47,136.43,7.3296]
[1720760434734,27.3277,136.47,136.43,7.3296]
[1720760437128,20.0,136.47,136.44,7.3289]
[1720760437440,7.65594674,136.48,136.45,7.3286]
[1720760437750,7.3271,136.48,136.44,25.6508]
[1720760438631,14.47,136.46,136.44,25.6508]
[1720760440455,14.47,136.46,136.44,18.3218]
[1720760441529,7.3271,136.48,136.44,18.3218]
[1720760441734,14.47,136.47,136.44,18.3218]
[1720760441909,14.47,136.48,136.44,18.3218]
[1720760442115,14.47,136.48,136.45,7.3284]
[1720760442418,7.6582664,136.5,136.45,14.47]
[1720760442622,7.6582664,136.5,136.48,7.3268]
[1720760442940,7.325,136.52,136.48,7.327]
[1720760443130,10.61902485,136.53,136.49,7.3263]
[1720760443328,10.61902485,136.53,136.49,25.6426]
[1720760443513,14.47,136.52,136.49,25.6426]
[1720760443722,14.47,136.51,136.49,18.3163]
[1720760443928,14.47,136.51,136.48,15.4701]
[1720760444658,10.61902485,136.53,136.48,22.797]
[1720760444824,14.47,136.51,136.48,22.797]
[1720760445328,21.7955,136.51,136.47,7.3274]
[1720760445541,7.3255,136.51,136.46,18.319]
[1720760445846,14.47,136.49,136.47,7.3271]
[1720760446444,14.47,136.49,136.46,25.647]
[1720760446655,7.3255,136.51,136.46,25.647]
[1720760446839,14.47,136.49,136.46,25.647]
[1720760447130,14.47,136.48,136.46,25.647]
[1720760447867,14.47,136.47,136.45,7.3285]
[1720760448154,14.47,136.46,136.44,29.5485]
[1720760449450,14.47,136.46,136.43,25.6529]
[1720760449649,14.47,136.45,136.43,25.6529]
[1720760450147,14.47,136.46,136.44,7.3291]
[1720760450520,7.3267,136.49,136.45,7.3286]
[1720760450736,14.47,136.46,136.45,7.3286]
[1720760451027,14.47,136.47,136.45,7.3286]
[1720760451432,7.3255,136.51,136.47,7.3273]
[1720760451731,14.47,136.49,136.47,7.3273]
[1720760452043,14.47,136.49,136.46,7.3279]
[1720760452252,7.65820358,136.53,136.47,6.491]
[1720760452453,7.65820358,136.53,136.51,18.3135]
[1720760452454,22.12820358,136.53,136.51,18.3135]
[1720760452659,14.47,136.54,136.51,25.6386]
[1720760452970,26.52172999,136.53,136.5,7.3258]
[1720760453179,14.47,136.53,136.5,7.3258]
[1720760453464,14.47,136.52,136.49,7.3263]
[1720760454132,14.47,136.52,136.5,7.3258]
[1720760454460,7.3234,136.55,136.5,7.3258]
[1720760454660,14.47,136.52,136.5,7.3258]
[1720760454967,14.47,136.52,136.48,19.78158883]
[1720760455145,7.65682154,136.56,136.48,19.78158883]
[1720760455146,7.3235,136.55,136.5,25.6404]
[1720760455342,14.47,136.53,136.51,7.3254]
[1720760456465,7.3235,136.55,136.5,18.3148]
[1720760456640,14.47,136.53,136.5,18.3148]
[1720760457465,14.47,136.54,136.5,18.3148]
[1720760457644,14.47,136.54,136.51,7.3254]
[1720760458764,14.47,136.54,136.5,25.6405]
[1720760458962,14.47,136.53,136.5,18.3148]
[1720760459355,14.47,136.53,136.5,25.6404]
[1720760459544,7.3235,136.55,136.5,25.6404]
[1720760459878,14.47,136.53,136.51,7.3253]
[1720760460046,14.47,136.54,136.51,7.3253]
[1720760460437,14.47,136.54,136.52,7.3248]
[1720760460651,14.47,136.54,136.5,18.3148]
[1720760461768,14.47,136.54,136.51,7.3252]
[1720760461969,21.7938,136.54,136.5,25.6406]
[1720760462471,21.7945,136.53,136.47,24.8089]
[1720760462763,21.7956,136.51,136.47,32.1363]
[1720760462967,14.47,136.5,136.47,24.8089]
[1720760463135,14.47,136.5,136.38,263.50965355]
[1720760463136,14.47,136.5,136.45,22.4537]
[1720760463337,14.47,136.48,136.45,15.1252]
[1720760463542,14.47,136.47,136.44,18.3219]
[1720760463759,14.47,136.46,136.44,18.3219]
[1720760463950,14.47,136.46,136.44,25.6507]
[1720760464151,14.47,136.47,136.44,25.6507]
[1720760464544,21.7977,136.47,136.44,18.3219]
[1720760464774,14.47,136.5,136.43,13.8096]
[1720760464775,14.47,136.45,136.43,6.4801]
[1720760465469,14.47,136.45,136.43,13.8097]
[1720760466180,14.47,136.45,136.42,7.3301]
[1720760468475,7.3269,136.49,136.44,7.3287]
[1720760468778,14.47,136.47,136.45,7.3286]
[1720760470184,7.3263,136.5,136.42,14.47]
[1720760470388,25.66963356,136.52,136.46,7.3278]
[1720760470389,20.0,136.49,136.46,7.3278]
[1720760470564,34.47,136.49,136.46,7.3278]
[1720760471269,34.47,136.49,136.45,26.13762951]
[1720760471579,14.47,136.48,136.45,27.11546192]
[1720760471960,14.47,136.48,136.46,7.3279]
[1720760472165,14.47,136.48,136.45,25.6498]
[1720760472386,14.47,136.47,136.44,7.329]
[1720760473371,14.47,136.47,136.45,7.3284]
[1720760473567,14.47,136.47,136.46,7.3281]
[1720760476090,7.66108843,136.49,136.47,7.3274]
[1720760476397,14.47,136.49,136.47,7.3274]
[1720760477983,14.47,136.49,136.46,25.6483]
[1720760478182,14.47,136.48,136.46,18.3203]
[1720760478382,14.47,136.47,136.46,18.3203]
[1720760478574,14.47,136.48,136.46,18.3203]
[1720760479186,14.47,136.48,136.46,25.6482]
[1720760481088,14.47,136.49,136.46,25.6482]
[1720760482574,14.47,136.48,136.46,25.6482]
[1720760482767,14.47,136.48,136.41,15.0176]
[1720760482973,14.47,136.46,136.44,7.3289]
[1720760483171,14.47,136.48,136.45,7.3286]
[1720760483382,14.47,136.48,136.45,25.6503]
[1720760483569,14.47,136.47,136.45,25.6503]
[1720760484067,14.47,136.46,136.45,18.3217]
[1720760484484,14.47,136.46,136.44,7.3289]
[1720760485993,14.47,136.46,136.43,18.3243]
[1720760486168,14.47,136.46,136.44,7.3291]
[1720760486663,14.47,136.46,136.45,7.3286]
[1720760487091,14.47,136.47,136.45,7.3286]
[1720760488301,14.98698415,136.5,136.46,7.3281]
[1720760488586,14.47,136.48,136.46,7.3281]
[1720760488784,14.47,136.48,136.45,18.3212]
[1720760489090,14.47,136.47,136.45,18.3212]
[1720760490189,20.0,136.49,136.45,25.6495]
[1720760490500,14.47,136.48,136.46,7.3279]
[1720760490993,14.47,136.47,136.46,7.3281]
[1720760491383,14.98718415,136.5,136.41,15.0176]
[1720760491384,14.47,136.48,136.47,25.6463]
[1720760491906,14.47,136.48,136.47,18.319]
[1720760492270,14.47,136.49,136.47,18.319]
[1720760492683,14.47,136.48,136.46,7.3279]
[1720760492904,14.47,136.48,136.45,25.65]
[1720760493070,21.797,136.48,136.44,7.329]
[1720760493408,14.47,136.46,136.44,7.3287]
[1720760494270,14.47,136.45,136.43,25.6538]
[1720760494787,14.47,136.44,136.41,7.3306]
[1720760494997,14.47,136.44,136.4,25.6587]
[1720760494998,14.47,136.42,136.4,25.6587]
[1720760495177,14.47,136.42,136.4,18.3275]
[1720760495373,14.47,136.42,136.4,25.6585]
[1720760497008,14.47,136.41,136.4,25.6585]
[1720760498481,14.47,136.41,136.4,18.3275]
[1720760499193,21.8008,136.41,136.37,18.3312]
[1720760499398,14.47,136.39,136.37,25.6638]
[1720760499581,14.47,136.38,136.37,18.3312]
[1720760499781,14.47,136.38,136.33,6.4528]
[1720760499982,14.47,136.37,136.33,6.4528]
[1720760500193,14.47,136.37,136.35,7.3339]
[1720760500390,14.47,136.37,136.33,6.4528]
[1720760500391,14.47,136.36,136.34,18.3353]
[1720760500602,15.1377,136.42,136.29,21.6847]
[1720760500603,14.47,136.35,136.29,21.6847]
[1720760500785,14.47,136.32,136.31,25.6758]
[1720760502315,7.3331,136.37,136.32,7.3354]
[1720760502483,14.47,136.34,136.32,7.3354]
[1720760502684,20.0,136.36,136.32,7.3354]
[1720760503889,20.0,136.36,136.31,18.3397]
[1720760504087,7.3344,136.35,136.31,18.3397]
[1720760504498,7.3337,136.36,136.31,25.6758]
[1720760504689,20.0,136.35,136.31,25.6758]
[1720760506202,27.334,136.35,136.31,25.6758]
[1720760506602,20.0,136.35,136.32,7.3356]
[1720760506991,20.0,136.36,136.33,7.335]
[1720760507195,20.0,136.37,136.33,7.335]
[1720760507425,27.333,136.37,136.32,7.3354]
[1720760507708,7.3336,136.36,136.32,7.3354]
[1720760507889,20.0,136.35,136.32,7.3354]
[1720760508293,27.3341,136.35,136.31,18.3397]
[1720760509490,7.3346,136.34,136.3,7.3362]
[1720760510613,20.0,136.35,136.28,18.3435]
[1720760510821,45.0,136.34,136.26,21.6847]
[1720760511006,27.3356,136.33,136.26,21.6847]
[1720760511187,27.3356,136.33,136.28,7.3376]
[1720760512104,7.3357,136.32,136.27,25.6834]
[1720760514323,7.3357,136.32,136.28,7.3377]
[1720760514528,20.0,136.33,136.23,21.5333]
[1720760514529,20.0,136.31,136.24,18.349]
[1720760514693,7.3363,136.31,136.26,7.3388]
[1720760515394,15.2625,136.37,136.27,6.4254]
[1720760515598,47.57449015,136.38,136.33,7.335]
[1720760516112,14.99437414,136.38,136.33,7.335]
[1720760516292,7.3336,136.36,136.32,25.6741]
[1720760516496,7.3336,136.36,136.32,18.3386]
[1720760516720,20.0,136.35,136.32,18.3386]
[1720760517717,20.0,136.35,136.31,7.336]
[1720760517718,27.3344,136.35,136.3,7.3363]
[1720760517887,34.99638891,136.35,136.31,7.336]
[1720760518090,27.66198891,136.35,136.27,6.4254]
[1720760518933,34.99638891,136.35,136.3,7.3366]
[1720760520438,27.66198891,136.35,136.26,15.1079]
[1720760520618,61.6096,136.34,136.26,15.1079]
[1720760520804,20.0,136.33,136.26,15.1079]
[1720760521005,27.3353,136.33,136.26,15.1079]
[1720760522630,27.3353,136.33,136.29,7.3372]
[1720760522820,20.0,136.33,136.3,7.3363]
[1720760523020,7.66198891,136.35,136.3,7.3363]
[1720760523021,20.0,136.34,136.3,7.3363]
[1720760523233,20.0,136.34,136.26,15.1079]
[1720760523234,27.3351,136.34,136.29,7.337]
[1720760523941,20.0,136.34,136.28,25.6818]
[1720760524307,7.3359,136.32,136.28,25.6818]
[1720760524517,20.0,136.34,136.26,15.1079]
[1720760524727,7.3363,136.31,136.26,7.3384]
[1720760524935,7.3363,136.31,136.27,7.3382]
[1720760525444,45.0,136.33,136.27,18.3459]
[1720760525614,20.0,136.32,136.29,7.3368]
[1720760525815,20.0,136.32,136.28,7.3378]
[1720760526023,7.337,136.3,136.24,18.3486]
[1720760526322,7.337,136.3,136.25,7.3391]
[1720760526526,7.3374,136.29,136.25,7.3391]
[1720760526835,7.3369,136.3,136.25,7.3391]
[1720760528136,15.00222653,136.3,136.25,7.3391]
[1720760530412,7.3375,136.29,136.25,7.3391]
[1720760530737,15.00222653,136.3,136.25,7.3391]
[1720760531534,7.3373,136.29,136.25,7.3391]
[1720760531740,15.00222653,136.3,136.25,7.3391]
[1720760532125,7.66532653,136.3,136.26,25.6858]
[1720760532441,27.3357,136.32,136.26,18.347]
[1720760532638,20.0,136.32,136.26,18.347]
[1720760532939,27.66428695,136.32,136.26,18.347]
[1720760533142,27.3365,136.31,136.27,7.3382]
[1720760533441,27.3365,136.31,136.26,25.6856]
[1720760534651,14.51,136.29,136.26,25.6856]
[1720760534838,20.0,136.31,136.27,7.3381]
[1720760535015,14.51,136.29,136.26,25.6859]
[1720760535220,14.51,136.28,136.26,18.347]
[1720760535730,14.51,136.28,136.25,7.3392]
[1720760536644,14.51,136.28,136.26,7.3387]
[1720760536844,20.0,136.31,136.27,7.3383]
[1720760537046,14.51,136.29,136.26,25.6856]
[1720760539842,14.51,136.28,136.26,25.6856]
[1720760540148,14.51,136.28,136.26,18.347]
[1720760541129,14.51,136.28,136.25,7.3392]
[1720760541329,14.51,136.26,136.24,7.3398]
[1720760541660,14.51,136.26,136.23,18.3501]
[1720760541840,14.51,136.27,136.24,7.3399]
[1720760542740,14.51,136.27,136.23,25.6903]
[1720760542924,7.3379,136.28,136.23,25.6903]
[1720760542925,14.51,136.26,136.23,25.6903]
[1720760543426,14.51,136.26,136.24,7.3398]
[1720760543630,14.51,136.26,136.23,25.6904]
[1720760545254,14.51,136.26,136.24,7.3399]
[1720760546952,7.66631594,136.29,136.25,7.3394]
[1720760547126,20.0,136.28,136.26,7.3388]
[1720760547631,20.0,136.28,136.26,25.686]
[1720760547833,20.0,136.28,136.23,18.3511]
[1720760548035,14.51,136.28,136.25,7.3394]
[1720760549230,14.51,136.28,136.23,32.8611]
[1720760549436,14.51,136.28,136.24,7.3397]
[1720760550032,14.51,136.28,136.25,25.6877]
[1720760550261,14.51,136.29,136.25,25.6877]
[1720760550554,20.0,136.28,136.25,25.6877]
[1720760551052,34.51,136.28,136.25,25.6877]
[1720760551346,34.51,136.28,136.25,18.3485]
[1720760552132,34.51,136.28,136.25,25.6878]
[1720760552327,20.0,136.28,136.25,25.6878]
[1720760553227,20.0,136.28,136.26,7.3388]
[1720760555256,20.0,136.28,136.25,25.6877]
[1720760556131,34.51,136.28,136.25,25.6877]
[1720760556338,34.51,136.28,136.25,18.3485]
[1720760556669,34.51,136.28,136.25,25.6878]
[1720760557172,20.0,136.28,136.25,25.6878]
[1720760557343,7.66479917,136.32,136.24,14.51]
[1720760557551,22.17479917,136.32,136.27,14.51]
[1720760557846,14.51,136.33,136.29,7.3367]
[1720760558048,30.20983415,136.35,136.3,7.3365]
[1720760558252,29.50813415,136.35,136.3,21.8465]
[1720760559064,21.8447,136.34,136.29,40.1889]
[1720760559265,41.8451,136.33,136.29,18.3419]
[1720760559845,7.3357,136.32,136.29,18.3419]
[1720760560062,7.3357,136.32,136.29,18.803986]
[1720760560237,7.3358,136.32,136.28,21.8474]
[1720760560435,7.3358,136.32,136.28,7.3374]
[1720760560436,21.8458,136.32,136.28,7.3374]
[1720760561465,27.3353,136.33,136.29,7.79898436]
[1720760561667,27.3353,136.33,136.29,7.337]
[1720760561845,41.8453,136.33,136.29,7.337]
[1720760562045,20.0,136.33,136.29,7.337]
[1720760562251,20.0,136.33,136.28,25.6815]
[1720760562252,27.3356,136.33,136.28,25.6815]
[1720760562476,27.3356,136.33,136.28,40.1915]
[1720760564248,7.3357,136.32,136.28,18.3438]
[1720760564445,20.0,136.33,136.27,7.3381]
[1720760564446,7.3362,136.31,136.27,7.3381]
[1720760564667,14.51,136.3,136.26,7.3387]
[1720760565170,14.51,136.3,136.27,7.3383]
[1720760566456,14.51,136.3,136.27,25.6842]
[1720760567172,14.51,136.3,136.28,7.3377]
[1720760567563,14.51,136.31,136.28,7.3377]
[1720760568376,43.59579376,136.33,136.25,15.4996]
[1720760568581,14.51,136.29,136.26,7.3388]
[1720760569779,14.51,136.29,136.27,7.3383]
[1720760569947,14.51,136.3,136.28,7.3377]
[1720760570155,14.51,136.31,136.28,7.3377]
[1720760573271,14.51,136.3,136.28,7.3377]
[1720760574162,52.3358,136.32,136.28,7.3377]
[1720760574467,14.51,136.3,136.28,7.3377]
[1720760575004,14.51,136.29,136.27,18.3447]
[1720760575591,14.51,136.29,136.26,7.3385]
[1720760577079,14.51,136.29,136.27,7.3382]
[1720760577373,14.51,136.3,136.27,7.3382]
[1720760578280,27.3364,136.31,136.27,7.3382]
[1720760578487,14.51,136.3,136.27,7.3382]
[1720760579176,14.51,136.29,136.26,7.3386]
[1720760581460,14.51,136.3,136.28,7.3378]
[1720760581981,34.51,136.31,136.28,7.3378]
[1720760583086,14.51,136.3,136.28,7.3378]
[1720760583584,34.51,136.31,136.29,7.3372]
[1720760584471,34.51,136.31,136.28,7.3376]
[1720760585280,7.66545341,136.32,136.24,6.6271]
[1720760585465,15.1904,136.36,136.29,14.51]
[1720760585466,7.3345,136.35,136.29,14.51]
[1720760585672,34.51,136.34,136.29,14.51]
[1720760585986,14.51,136.34,136.29,14.51]
[1720760586584,14.51,136.34,136.31,7.3362]
[1720760586772,14.51,136.34,136.3,25.6783]
[1720760588096,14.51,136.34,136.31,7.3361]
[1720760588302,21.8445,136.35,136.31,7.3361]
[1720760588598,20.0,136.34,136.31,7.3361]
[1720760589312,20.0,136.34,136.3,40.1883]
[1720760590599,27.3346,136.34,136.31,1.46234902]
[1720760591603,7.66350396,136.36,136.32,7.3355]
[1720760591782,7.66350396,136.36,136.33,1.46213448]
[1720760592098,7.3333,136.37,136.33,15.97213448]
[1720760592273,21.8433,136.37,136.32,23.30763448]
[1720760592669,21.8433,136.37,136.32,23.30752723]
[1720760593300,21.8444,136.35,136.31,18.3392]
[1720760593803,7.3346,136.34,136.31,18.3392]
[1720760593988,21.8442,136.35,136.31,27.13679095]
[1720760594398,21.8442,136.35,136.31,25.6753]
[1720760594575,7.3349,136.34,136.3,15.1841]
[1720760594772,14.51,136.33,136.3,15.1841]
[1720760595000,14.51,136.33,136.3,22.5208]
[1720760595500,7.3351,136.33,136.29,7.337]
[1720760595807,14.51,136.32,136.28,25.6813]
[1720760596212,14.51,136.3,136.28,18.3437]
[1720760596401,14.51,136.29,136.28,18.3437]
[1720760596705,15.4958,136.35,136.28,18.3437]
[1720760596706,14.51,136.31,136.29,7.3372]
[1720760596910,14.51,136.32,136.29,7.3372]
[1720760597089,14.51,136.32,136.3,7.3365]
[1720760599310,7.3348,136.34,136.3,7.3365]
[1720760599508,14.51,136.32,136.3,7.3365]
[1720760599886,14.51,136.32,136.29,7.337]
[1720760600912,34.51,136.33,136.3,7.3367]
[1720760601086,14.51,136.33,136.31,7.3361]
[1720760601277,15.5738,136.37,136.31,7.3361]
[1720760601488,7.66472152,136.38,136.3,6.475]
[1720760601686,7.66472152,136.38,136.31,15.6118]
[1720760601897,2.96082127,136.42,136.35,14.51]
[1720760602106,14.51,136.4,136.37,7.3325]
[1720760602310,12.05148814,136.41,136.37,7.3325]
[1720760602311,14.51,136.41,136.37,7.3325]
[1720760602482,17.95743589,136.42,136.33,18.3374]
[1720760602483,14.51,136.38,136.33,18.3374]
[1720760602682,14.51,136.36,136.34,7.3345]
[1720760602903,14.51,136.36,136.33,25.6725]
[1720760603107,14.51,136.36,136.33,18.3374]
[1720760603815,14.51,136.36,136.35,7.334]
[1720760604000,14.51,136.36,136.34,7.3344]
[1720760604208,14.51,136.36,136.33,25.6723]
[1720760604403,7.3325,136.38,136.33,25.6723]
[1720760604719,14.51,136.36,136.33,25.6723]
[1720760605106,14.51,136.35,136.33,25.6723]
[1720760605907,14.51,136.35,136.33,18.3374]
[1720760606120,14.51,136.35,136.32,7.3354]
[1720760606283,14.51,136.34,136.32,7.3354]
[1720760606797,14.51,136.34,136.33,7.3351]
[1720760606987,14.51,136.35,136.34,7.3344]
[1720760607194,14.51,136.36,136.34,7.3344]
[1720760607697,14.51,136.36,136.34,25.6708]
[1720760609306,7.3324,136.39,136.34,25.6708]
[1720760609526,14.51,136.36,136.34,25.6708]
[1720760610626,14.51,136.35,136.34,25.6708]
[1720760610790,14.51,136.35,136.34,18.3364]
[1720760611516,27.3324,136.38,136.34,18.3364]
[1720760611714,14.51,136.35,136.34,25.671]
[1720760612306,14.51,136.36,136.34,25.671]
[1720760615630,14.51,136.35,136.33,7.335]
[1720760616221,14.51,136.34,136.32,25.6745]
[1720760616915,20.0,136.38,136.34,25.6703]
[1720760617113,14.51,136.36,136.34,25.6703]
[1720760619103,14.51,136.37,136.34,25.6703]
[1720760620411,14.51,136.36,136.34,25.6703]
[1720760620607,14.51,136.36,136.32,18.3391]
[1720760620928,14.51,136.37,136.34,7.3346]
[1720760621138,20.0,136.38,136.34,7.3346]
[1720760621307,14.51,136.36,136.34,7.3346]
[1720760622229,14.51,136.36,136.33,25.6714]
[1720760623023,14.51,136.34,136.32,7.3355]
[1720760623233,14.51,136.34,136.3,7.3365]
[1720760623234,7.3347,136.34,136.3,7.3365]
[1720760623430,14.51,136.32,136.3,7.3365]
[1720760623733,7.3347,136.34,136.3,7.3365]
[1720760623928,14.51,136.32,136.3,7.3365]
[1720760624610,14.51,136.31,136.28,18.3433]
[1720760625230,14.51,136.31,136.29,7.337]
[1720760626306,14.51,136.31,136.3,7.3367]
[1720760626739,14.51,136.31,136.29,7.3371]
[1720760627025,14.51,136.3,136.28,18.3433]
[1720760628341,14.51,136.3,136.28,25.6807]
[1720760628510,14.51,136.29,136.26,7.3384]
[1720760628832,7.3364,136.31,136.26,7.3384]
[1720760628833,14.51,136.27,136.26,7.3384]
[1720760630337,14.51,136.28,136.27,7.3383]
[1720760632936,14.51,136.28,136.26,7.3387]
[1720760633322,14.51,136.27,136.26,7.3387]
[1720760635437,14.51,136.28,136.26,7.3387]
[1720760637135,14.51,136.27,136.26,7.3387]
[1720760638156,14.51,136.28,136.27,7.3383]
[1720760638653,14.51,136.28,136.26,7.3386]
[1720760639033,14.51,136.27,136.26,7.3386]
[1720760642861,14.51,136.28,136.27,7.3379]
[1720760644456,14.51,136.28,136.26,7.3386]
[1720760645260,14.51,136.27,136.26,7.3386]
[1720760646353,14.51,136.28,136.26,7.3386]
[1720760647170,14.51,136.27,136.26,7.3386]
[1720760649366,14.51,136.28,136.26,7.3386]
[1720760651566,14.51,136.27,136.26,7.3386]
[1720760653971,14.51,136.27,136.25,25.6871]
[1720760654851,14.51,136.26,136.25,25.6871]
[1720760657172,15.00309869,136.3,136.25,25.6871]
[1720760657395,14.51,136.26,136.25,25.6871]
[1720760660576,55.30154986,136.32,136.25,25.6871]
[1720760660778,14.51,136.26,136.25,25.6871]
[1720760665872,7.337,136.3,136.25,25.6871]
[1720760666073,14.51,136.26,136.25,25.6871]
[1720760674983,14.51,136.26,136.24,7.3397]
[1720760675302,14.51,136.25,136.18,7.0496598]
[1720760675486,14.51,136.22,136.21,25.6952]
[1720760675686,14.51,136.22,136.21,18.3539]
[1720760676897,14.51,136.22,136.2,7.342]
[1720760677196,14.51,136.21,136.19,25.699]
[1720760678598,14.51,136.21,136.19,18.3567]
[1720760678896,14.51,136.21,136.19,25.6993]
[1720760679696,14.51,136.2,136.18,0.8715598]
[1720760680003,42.4935054,136.27,136.18,0.8715598]
[1720760680004,14.51,136.19,136.18,0.8715598]
[1720760680589,14.51,136.19,136.18,8.2147598]
[1720760680799,14.51,136.2,136.19,7.3426]
[1720760681803,14.51,136.2,136.18,26.5723598]
[1720760682377,14.51,136.19,136.18,0.8715598]
[1720760683301,14.51,136.19,136.18,8.2147598]
[1720760683494,14.51,136.19,136.18,0.8715598]
[1720760684689,14.51,136.19,136.18,8.2147598]
[1720760685292,14.51,136.19,136.18,0.8715598]
[1720760687706,21.8526,136.19,136.18,0.8715598]
[1720760687906,34.51,136.19,136.18,0.8715598]
[1720760688092,20.0,136.19,136.18,0.8715598]
[1720760688289,34.51,136.19,136.18,0.8715598]
[1720760689198,41.8526,136.19,136.18,0.8715598]
[1720760689588,86.8526,136.19,136.18,0.8715598]
[1720760690699,86.8526,136.19,136.11,16.4444]
[1720760690700,7.3457,136.14,136.11,16.4444]
[1720760690911,97.8667,136.19,136.11,16.4444]
[1720760690912,14.51,136.13,136.11,16.4444]
[1720760691089,14.51,136.13,136.11,23.791]
[1720760691290,14.51,136.14,136.11,23.791]
[1720760691602,14.51,136.14,136.11,7.3466]
[1720760691790,14.51,136.13,136.1,32.0092]
[1720760691985,14.51,136.13,136.1,25.7157]
[1720760692903,14.51,136.13,136.11,7.3469]
[1720760693599,14.51,136.13,136.1,25.7157]
[1720760693988,14.51,136.12,136.1,25.7157]
[1720760694193,14.51,136.12,136.1,18.3684]
[1720760694601,14.51,136.12,136.1,25.7159]
[1720760697200,14.51,136.12,136.11,7.3469]
[1720760698096,14.51,136.13,136.11,7.3469]
[1720760698300,7.66805526,136.16,136.12,7.3464]
[1720760698512,7.66805526,136.16,136.13,7.3457]
[1720760698713,14.51,136.15,136.13,7.3457]
[1720760699214,14.51,136.14,136.13,7.3457]
[1720760699723,7.66654758,136.19,136.16,18.3594]
[1720760700028,14.51,136.2,136.18,7.3432]
[1720760700716,22.17680847,136.21,136.19,7.3425]
[1720760700894,22.17680847,136.21,136.18,25.7009]
[1720760701100,15.00840847,136.21,136.16,7.3438]
[1720760701299,14.51,136.19,136.16,7.3438]
[1720760703400,14.51,136.19,136.17,18.3592]
[1720760703594,14.51,136.2,136.17,18.3592]
[1720760703796,14.51,136.2,136.18,7.3432]
[1720760704602,14.51,136.2,136.17,25.7028]
[1720760704804,14.51,136.19,136.17,25.7028]
[1720760705213,7.66677992,136.23,136.18,7.3432]
[1720760705398,14.51,136.2,136.18,7.3432]
[1720760705796,7.66677992,136.23,136.19,18.3557]
[1720760706025,2.96082127,136.24,136.19,18.3557]
[1720760706204,37.47082127,136.24,136.19,18.3557]
[1720760706622,14.51,136.23,136.2,7.3421]
[1720760707005,14.51,136.23,136.19,27.16645648]
[1720760707324,14.51,136.22,136.19,18.3557]
[1720760707528,14.51,136.2,136.17,22.9647]
[1720760708121,14.51,136.2,136.17,7.3435]
[1720760708317,7.3414,136.22,136.17,7.3435]
[1720760708318,14.51,136.19,136.17,7.3435]
[1720760709006,14.51,136.2,136.17,7.3435]
[1720760709198,14.51,136.2,136.18,7.343]
[1720760711142,14.51,136.21,136.19,7.3426]
[1720760711434,14.51,136.22,136.19,7.3426]
[1720760711640,14.51,136.23,136.2,7.3421]
[1720760713425,14.51,136.23,136.19,25.699]
[1720760713829,7.3406,136.23,136.19,25.699]
[1720760714134,14.51,136.22,136.18,7.343]
[1720760715411,14.51,136.21,136.18,7.343]